fUSD/lending_fUSD_20260107
["ID","MTS","AMOUNT","RATE_DAILY","PERIOD"]
[400762175,1767820245059,-150.0,0.00017509,2]
[400762177,1767820245068,-1000.0,0.00017509,2]
[400762179,1767820245077,-150.0,0.00017512,2]
[400762181,1767820245087,-300.0,0.00017513,2]
[400762183,1767820245096,-300.0,0.00017519,2]
[400762186,1767820245106,-404.94,0.0001752,2]
[400762187,1767820245115,-181.06,0.00017526,2]
[400762189,1767820245124,-1000.0,0.00017531,2]
[400762192,1767820245133,-5740.67803484,0.00017533,2]
[400762194,1767820245143,-8579.32248666,0.00017533,2]
[400762196,1767820245152,-640.0,0.00017534,2]
[400762198,1767820245161,-829.0,0.00017534,2]
[400762200,1767820245172,-557.0,0.00017534,2]
[400762202,1767820245181,-500.0,0.00017534,2]
[400762204,1767820245190,-1000.0,0.00017534,2]
[400762206,1767820245199,-240.82358149,0.00017534,2]
[400762208,1767820245209,-300.0,0.00017537,2]
[400762210,1767820245222,-300.0,0.00017546,2]
[400762212,1767820245231,-1000.0,0.00017547,2]
[400762224,1767820245326,-300.0,0.0001755,2]
[400762226,1767820245337,-150.0,0.00017551,2]
[400762228,1767820245349,-1000.0,0.00017557,2]
[400762230,1767820245359,-300.0,0.00017563,2]
[400762232,1767820245369,-300.0,0.00017564,2]
[400762234,1767820245379,-300.0,0.00017566,2]
[400762235,1767820245389,-1000.0,0.00017568,2]
[400762237,1767820245398,-300.0,0.00017571,2]
[400762240,1767820245411,-300.0,0.00017575,2]
[400762242,1767820245421,-1000.0,0.0001758,2]
[400762244,1767820245430,-1000.0,0.00017583,2]
[400762246,1767820245439,-1000.0,0.00017585,2]
[400762248,1767820245448,-1000.0,0.00017586,2]
[400762250,1767820245458,-150.0,0.00017588,2]
[400762252,1767820245467,-640.0,0.00017589,2]
[400762254,1767820245477,-829.0,0.00017589,2]
[400762256,1767820245486,-557.0,0.00017589,2]
[400762258,1767820245496,-500.0,0.00017589,2]
[400762260,1767820245506,-1983.0,0.00017593,2]
[400762262,1767820245515,-1000.0,0.00017609,2]
[400762264,1767820245525,-300.0,0.00017609,2]
[400762266,1767820245535,-300.0,0.00017611,2]
[400762268,1767820245544,-157.51038049,0.00017617,2]
[400762270,1767820245553,-150.0,0.00017617,2]
[400762272,1767820245562,-1000.0,0.00017617,2]
[400762274,1767820245571,-1000.0,0.00017618,2]
[400762276,1767820245580,-300.0,0.00017619,2]
[400762278,1767820245589,-1000.0,0.00017626,2]
[400762280,1767820245599,-190.0,0.00017631,2]
[400762283,1767820245613,-8154.42815084,0.0001764,2]
[400762285,1767820245623,-1000.0,0.0001764,2]
[400762287,1767820245632,-640.0,0.00017643,2]
[400762289,1767820245642,-829.0,0.00017643,2]
[400762291,1767820245652,-557.0,0.00017643,2]
[400762293,1767820245661,-560.79963653,0.00017643,2]
[400762295,1767820245671,-1983.0,0.00017646,2]
[400762297,1767820245680,-595.37131296,0.00017647,2]
[400762299,1767820245689,-300.0,0.00017651,2]
[400762301,1767820245699,-2181.0,0.00017656,2]
[400762303,1767820245708,-1000.0,0.00017658,2]
[400762305,1767820245719,-300.0,0.00017658,2]
[400762307,1767820245728,-2351.0,0.00017662,2]
[400762309,1767820245738,-1405.0,0.0001767,2]
[400762312,1767820245748,-161.58,0.0001767,2]
[400762314,1767820245757,-3467.0,0.0001767,2]
[400762316,1767820245767,-1330.0,0.0001767,2]
[400762318,1767820245776,-1343.242,0.0001767,2]
[400762320,1767820245785,-505.0,0.0001767,2]
[400762322,1767820245795,-920.093,0.0001767,2]
[400762324,1767820245804,-1207.708,0.0001767,2]
[400762326,1767820245814,-4818.0,0.0001767,2]
[400762328,1767820245823,-6551.0,0.0001767,2]
[400762330,1767820245832,-2436.0,0.0001767,2]
[400762332,1767820245841,-150.0,0.00017673,2]
[400762334,1767820245851,-179.04,0.00017675,2]
[400762336,1767820245861,-300.0,0.00017688,2]
[400762338,1767820245871,-190.0,0.0001769,2]
[400762340,1767820245880,-300.0,0.00017693,2]
[400762342,1767820245892,-428.98,0.00017693,2]
[400762344,1767820245908,-150.0,0.00017695,2]
[400762346,1767820245918,-1000.0,0.00017695,2]
[400762348,1767820245928,-640.0,0.00017698,2]
[400762350,1767820245937,-829.0,0.00017698,2]
[400762352,1767820245946,-557.0,0.00017698,2]
[400762354,1767820245955,-1000.0,0.000177,2]
[400762356,1767820245964,-787.35487633,0.000177,2]
[400762358,1767820245973,-300.0,0.00017706,2]
[400762360,1767820245986,-1000.0,0.00017709,2]
[400762362,1767820245996,-300.0,0.00017717,2]
[400762365,1767820246005,-300.0,0.00017721,2]
[400762366,1767820246014,-1100.0,0.00017726,7]
[400762368,1767820246025,-300.0,0.00017727,2]
[400762371,1767820246036,-300.0,0.00017728,2]
[400762372,1767820246046,-1000.0,0.0001773,2]
[400762374,1767820246055,-300.0,0.00017733,2]
[400762376,1767820246065,-1000.0,0.00017733,2]
[400762379,1767820246076,-300.0,0.00017733,2]
[400762380,1767820246088,-1000.0,0.00017734,2]
[400762383,1767820246099,-300.0,0.00017735,2]
[400762385,1767820246109,-1476.84,0.00017738,2]
[400762387,1767820246119,-450.04111853,0.00017739,2]
[400762389,1767820246128,-190.0,0.0001774,2]
[400762391,1767820246137,-300.0,0.0001774,2]
[400762393,1767820246146,-300.0,0.00017741,2]
[400762395,1767820246155,-25000.0,0.00017742,3]
[400762397,1767820246164,-300.0,0.00017749,2]
[400762399,1767820246174,-1000.0,0.0001775,2]
[400762401,1767820246187,-25000.0,0.0001775,3]
[400762403,1767820246197,-640.0,0.00017753,2]
[400762405,1767820246207,-829.0,0.00017753,2]
[400762407,1767820246216,-557.0,0.00017753,2]
[400762409,1767820246226,-1000.0,0.00017755,2]
[400762411,1767820246235,-1000.0,0.00017755,2]
[400762413,1767820246244,-269.96,0.00017756,2]
[400762415,1767820246253,-500.0,0.00017758,2]
[400762417,1767820246263,-1000.0,0.00017758,2]
[400762419,1767820246272,-25000.0,0.00017759,3]
[400762421,1767820246281,-300.0,0.00017762,2]
[400762423,1767820246291,-500.0,0.00017767,2]
[400762425,1767820246300,-25000.0,0.00017768,3]
[400762427,1767820246310,-181.06,0.00017768,2]
[400762429,1767820246319,-269.96,0.00017771,2]
[400762431,1767820246328,-1000.0,0.00017773,2]
[400762433,1767820246340,-300.0,0.00017775,2]
[400762435,1767820246350,-25000.0,0.00017777,3]
[400762437,1767820246361,-300.0,0.00017778,2]
[400762439,1767820246370,-25000.0,0.00017786,3]
[400762441,1767820246382,-300.0,0.00017786,2]
[400762443,1767820246392,-181.06,0.00017786,2]
[400762445,1767820246401,-269.96,0.00017786,2]
[400762447,1767820246413,-1000.0,0.0001779,2]
[400762449,1767820246422,-150.0,0.00017791,2]
[400762451,1767820246431,-25000.0,0.00017794,3]
[400762453,1767820246441,-1000.0,0.00017795,2]
[400762455,1767820246450,-1000.0,0.00017795,2]
[400762457,1767820246459,-300.0,0.00017798,2]
[400762459,1767820246468,-1000.0,0.000178,2]
[400762461,1767820246477,-150.0,0.00017801,2]
[400762463,1767820246487,-500.0,0.00017803,2]
[400762465,1767820246498,-25000.0,0.00017803,3]
[400762467,1767820246508,-300.0,0.00017805,2]
[400762469,1767820246517,-150.0,0.00017806,2]
[400762471,1767820246527,-640.0,0.00017808,2]
[400762473,1767820246536,-829.0,0.00017808,2]
[400762475,1767820246545,-557.0,0.00017808,2]
[400762477,1767820246555,-25000.0,0.00017812,3]
[400762479,1767820246564,-3000.0,0.00017812,2]
[400762481,1767820246574,-948.81970011,0.00017812,2]
[400762483,1767820246583,-7419.99154,0.0001782,2]
[400762485,1767820246593,-7419.99154,0.0001782,2]
[400762487,1767820246603,-25000.0,0.00017821,3]
[400762489,1767820246615,-25000.0,0.0001783,3]
[400762491,1767820246625,-261.94980575,0.0001783,2]
[400762493,1767820246634,-7419.99154,0.0001783,2]
[400762495,1767820246643,-25000.0,0.00017838,3]
[400762497,1767820246653,-1000.0,0.00017843,2]
[400762499,1767820246662,-1000.0,0.00017846,2]
[400762502,1767820246671,-300.0,0.00017846,2]
[400762504,1767820246681,-3902.41315776,0.00017847,2]
[400762505,1767820246691,-25000.0,0.00017847,3]
[400762507,1767820246701,-1000.0,0.00017851,2]
[400762509,1767820246712,-1000.0,0.00017853,2]
[400762512,1767820246721,-25000.0,0.00017856,3]
[400762514,1767820246731,-7419.99155,0.0001786,2]
[400762516,1767820246739,-640.0,0.00017862,2]
[400762518,1767820246749,-829.0,0.00017862,2]
[400762520,1767820246759,-557.0,0.00017862,2]
[400762522,1767820246768,-1000.0,0.00017863,2]
[400762524,1767820246778,-1000.0,0.00017864,2]
[400762526,1767820246788,-25000.0,0.00017865,3]
[400762528,1767820246797,-500.0,0.00017866,2]
[400762530,1767820246806,-1000.0,0.00017871,2]
[400762532,1767820246817,-3902.41315776,0.00017874,2]
[400762534,1767820246827,-25000.0,0.00017874,3]
[400762536,1767820246836,-1983.0,0.00017878,2]
[400762538,1767820246846,-500.0,0.00017879,2]
[400762540,1767820246855,-500.0,0.00017879,2]
[400762542,1767820246864,-7419.99154,0.0001788,2]
[400762544,1767820246874,-1455.64956121,0.00017881,2]
[400762546,1767820246883,-1000.0,0.00017882,2]
[400762548,1767820246893,-25000.0,0.00017882,3]
[400762550,1767820246903,-1000.0,0.00017886,2]
[400762552,1767820246912,-1000.0,0.00017887,2]
[400762554,1767820246922,-300.0,0.00017888,2]
[400762556,1767820246931,-300.0,0.0001789,2]
[400762558,1767820246940,-25000.0,0.00017891,3]
[400762560,1767820246951,-300.0,0.00017892,2]
[400762562,1767820246960,-1001.402075,0.000179,3]
[400762564,1767820246970,-1261.56330367,0.000179,2]
[400762566,1767820246980,-25000.0,0.000179,3]
[400762568,1767820246990,-634.2954026,0.000179,2]
[400762570,1767820246999,-5740.67803484,0.000179,2]
[400762572,1767820247009,-8579.32248666,0.000179,2]
[400762574,1767820247020,-787.35487633,0.000179,2]
[400762576,1767820247029,-3902.41315776,0.000179,2]
[400762578,1767820247039,-7419.99154,0.0001791,2]
[400762580,1767820247048,-214.0,0.00017916,2]
[400762582,1767820247057,-646.2212164,0.00017917,2]
[400762584,1767820247066,-838.1858208,0.00017917,2]
[400762586,1767820247075,-567.24922462,0.00017917,2]
[400762588,1767820247084,-150.0,0.0001792,2]
[400762590,1767820247093,-500.0,0.00017923,2]
[400762592,1767820247103,-300.0,0.00017926,2]
[400762594,1767820247113,-300.0,0.00017927,2]
[400762596,1767820247123,-300.0,0.00017927,2]
[400762599,1767820247133,-300.0,0.00017929,2]
[400762600,1767820247143,-300.0,0.0001793,2]
[400762602,1767820247152,-1000.0,0.00017931,2]
[400762604,1767820247161,-1000.0,0.00017939,2]
[400762606,1767820247173,-300.0,0.00017947,2]
[400762608,1767820247182,-150.0,0.00017947,2]
[400762610,1767820247191,-150.0,0.00017948,2]
[400762612,1767820247201,-300.0,0.00017949,2]
[400762614,1767820247210,-300.0,0.00017949,2]
[400762616,1767820247220,-1000.0,0.00017952,2]
[400762619,1767820247232,-1000.0,0.00017955,2]
[400762621,1767820247241,-1000.0,0.0001796,2]
[400762623,1767820247250,-1000.0,0.00017961,2]
[400762625,1767820247260,-300.0,0.00017962,2]
[400762626,1767820247269,-189.05,0.00017969,2]
[400762628,1767820247279,-1000.0,0.00017969,2]
[400762630,1767820247288,-1000.0,0.00017969,2]
[400762632,1767820247298,-630.21,0.00017969,2]
[400762634,1767820247307,-500.0,0.0001797,2]
[400762636,1767820247318,-500.0,0.0001797,2]
[400762639,1767820247327,-500.0,0.0001797,2]
[400762641,1767820247337,-1000.0,0.0001797,2]
[400762643,1767820247348,-1000.0,0.0001797,2]
[400762645,1767820247359,-983.46328676,0.0001797,2]
[400762646,1767820247369,-1000.0,0.0001797,2]
[400762649,1767820247379,-1000.0,0.0001797,2]
[400762651,1767820247388,-1000.0,0.0001797,2]
[400762653,1767820247397,-1000.0,0.0001797,2]
[400762654,1767820247407,-1109.90852601,0.0001797,2]
[400762656,1767820247419,-1000.0,0.00017971,2]
[400762658,1767820247431,-150.0,0.00017973,2]
[400762661,1767820247441,-150.0,0.00017973,2]
[400762663,1767820247452,-190.0,0.00017974,2]
[400762665,1767820247461,-301.44962762,0.00017974,2]
[400762667,1767820247472,-1000.0,0.00017977,2]
[400762669,1767820247482,-500.0,0.00017982,2]
[400762671,1767820247492,-300.0,0.00017983,2]
[400762673,1767820247502,-2181.0,0.00017984,2]
[400762675,1767820247511,-500.0,0.00017988,2]
[400762677,1767820247521,-300.0,0.00017988,2]
[400762678,1767820247530,-1455.64956121,0.0001799,2]
[400762680,1767820247540,-300.0,0.00017994,2]
[400762682,1767820247549,-1460.68038137,0.00017996,4]
[400762684,1767820247559,-14780.67683868,0.00017996,4]
[400762686,1767820247568,-31911.9233179,0.00017996,2]
[400762688,1767820247577,-500.0,0.00017997,2]
[400762690,1767820247586,-151.0,0.00017997,2]
[400762692,1767820247596,-300.0,0.00017999,2]
[400762694,1767820247605,-395.10952792,0.00017999,2]
[400762696,1767820247614,-300.0,0.00017999,2]
[400762698,1767820247624,-180.00531046,0.00017999,2]
[400762700,1767820247634,-174.14927633,0.00017999,2]
[400762702,1767820247644,-500.0,0.00017999,2]
[400762704,1767820247653,-500.0,0.00017999,2]
[400762706,1767820247664,-500.0,0.00017999,2]
[400762708,1767820247674,-500.0,0.00017999,2]
[400762710,1767820247683,-327.92652128,0.00017999,2]
[400762712,1767820247693,-300.0,0.00017999,2]
[400762714,1767820247703,-666.0,0.00017999,2]
[400762716,1767820247713,-300.0,0.00017999,2]
[400762718,1767820247722,-300.0,0.00017999,2]
[400762719,1767820247731,-634.83470543,0.00017999,2]
[400762720,1767820247740,-666.0,0.00017999,2]
[400762721,1767820247749,-300.0,0.00017999,2]
[400762722,1767820247758,-5826.21400436,0.00017999,2]
[400762723,1767820247768,-4609583.89702821,0.00018,2]
[400762724,1767820247777,-73082.2118478,0.00018,2]
[400762890,1767820250205,-333.26194966,0.00018,2]
[400762894,1767820250501,-1.7e-07,0.00018,2]
[400762895,1767820250578,-151.0,0.00015753,2]
[400762896,1767820250587,-151.0,0.00015948,2]
[400762897,1767820250596,-1458.29806479,0.00018,2]
[400762898,1767820250693,-9.07531891,0.00018,2]
[400762899,1767820250824,-403.088,0.00018,2]
[400762900,1767820253811,-1476.27309029,0.00014599,2]
[400762901,1767820253873,-1289.69382742,0.00014599,2]
[400762902,1767820253886,-978.26568528,0.00014599,2]
[400762903,1767820253900,-875.73029701,0.00014599,2]
[400762904,1767820253912,-123.17606409,0.00016957,2]
[400762905,1767820253925,-162.9922531,0.00016957,2]
[400762906,1767820253937,-482.63,0.00017041,2]
[400762907,1767820253947,-171.3,0.00017178,2]
[400762908,1767820253958,-466.59,0.00017178,2]
[400762909,1767820253969,-565.0,0.0001767,2]
[400762910,1767820253980,-2944.14070427,0.00018,2]
[400762911,1767820253993,-539.44516753,0.00018,2]
[400762912,1767820254078,-1245.20416491,0.00018,2]
[400762913,1767820255180,-44468.57517599,0.00018,2]
[400762914,1767820255207,-27296.52579565,0.00018,2]
[400762915,1767820255301,-930.3743327,0.00018,2]
[400762918,1767820469590,190.77887814,0.00014399,2]
[400762924,1767820494212,8357.69892973,0.00014399,2]
[400762925,1767820501589,300.0,0.00014498,2]
[400762926,1767820501689,1151.53219213,0.00014498,2]
[400762927,1767820501713,48.46780787,0.00014498,2]
[400762928,1767820501846,254.0,0.00014498,2]
[400762929,1767820502218,150.0,0.00014498,2]
[400762930,1767820506052,388.81615301,0.00014399,2]
[400762931,1767820522736,500.0,0.00014498,2]
[400762932,1767820522884,532.8400981,0.00014498,2]
[400762933,1767820523570,500.0,0.00014498,2]
[400762934,1767820524150,500.0,0.00014498,2]
[400762935,1767820530061,1081.3399746,0.00014399,2]
[400762936,1767820534339,6044.54596642,0.00014489,2]
[400762937,1767820534363,10000.01,0.00014489,2]
[400762938,1767820534754,6529.1715664,0.00014489,2]
[400762939,1767820555702,-212.64171404,0.00014399,2]
[400762940,1767820561654,-238.92681915,0.00014399,2]
[400762941,1767820564780,-500.0,0.00014399,2]
[400762942,1767820676184,-163.1260951,0.00014399,2]
[400762943,1767820705606,166.66,0.00013936,2]
[400762944,1767820705802,-14.05657515,0.00014399,2]
[400762945,1767820705824,-147.04342485,0.00014399,2]
[400762946,1767820705878,166.66,0.00014229,2]
[400762948,1767820741785,150.0,0.00014548,120]
[400762950,1767820810594,-79.50649295,0.00014399,2]
[400762951,1767820810618,-83.5103937,0.00014399,2]
[400762952,1767820815506,-93.67227655,0.00014399,2]
[400762953,1767820815527,-180.05493253,0.00014399,2]
[400762954,1767820840753,-188.63541323,0.00014398,2]
[400762955,1767820840777,-11.36458677,0.00014399,2]
[400762956,1767820855514,-166.66,0.00014399,2]
[400762957,1767820885814,-21.97541321,0.00014399,2]
[400762958,1767820885836,-77.5804807,0.00014399,2]
[400762959,1767820885859,-188.63541321,0.00014399,2]
[400762960,1767820885880,-223.35215743,0.00014399,2]
[400762961,1767820888203,-452.27880143,0.00014399,2]
[400762962,1767820891033,-255.32900744,0.00014399,2]
[400762963,1767820892832,-310.10312473,0.00014399,2]
[400762964,1767820894473,-205.90101924,0.00014399,2]
[400762965,1767820897193,-282.7774489,0.00014399,2]
[400762966,1767820899595,-274.16345229,0.00014399,2]
[400762967,1767820905376,-217.87501363,0.00014399,2]
[400762968,1767820907531,-205.27058711,0.00014399,2]
[400762969,1767820913058,-152.90274074,0.00014399,2]
[400762970,1767820914235,-382.35510907,0.00014399,2]
[400762971,1767820918215,-318.16224451,0.00014399,2]
[400762972,1767820920292,-190.29659076,0.00014399,2]
[400762973,1767820922387,-305.44719933,0.00014399,2]
[400762974,1767820925016,-500.0,0.00014399,2]
[400762975,1767820926679,-238.22372313,0.00014399,2]
[400762976,1767820927896,-188.86471918,0.00014399,2]
[400762977,1767820930354,-246.08198976,0.00014399,2]
[400762978,1767820933585,-500.0,0.00014399,2]
[400762979,1767820935505,-356.66185142,0.00014399,2]
[400762980,1767820937699,-186.68173507,0.00014399,2]
[400762981,1767820939775,-345.15939816,0.00014399,2]
[400762982,1767820944039,-565.41502559,0.00014399,2]
[400762983,1767820945959,-300.0,0.00014399,2]
[400762984,1767820947614,-2034.49059513,0.00014399,2]
[400762985,1767820969132,4108.7785,0.00014399,2]
[400762986,1767821115419,150.0,0.00013738,2]
[400762987,1767821124903,1672.25030974,0.00014399,2]
[400762988,1767821124926,8773.93429026,0.00014399,2]
[400762992,1767821258340,293.316777,0.00014339,2]
[400762994,1767821301715,932.75893274,0.00014353,2]
[400762995,1767821305270,-373.29367,0.00014353,2]
[400762996,1767821311003,-454.70867464,0.00014353,2]
[400762997,1767821315966,-198.54862035,0.00014352,2]
[400762998,1767821320078,-116.16811728,0.00014352,2]
[400762999,1767821320105,-275.50563766,0.00014352,2]
[400763000,1767821323017,-172.6079603,0.00014352,2]
[400763001,1767821325269,-51.88640204,0.00014352,2]
[400763002,1767821325296,-198.11359796,0.00014352,2]
[400763003,1767821327777,-156.70633,0.00014352,2]
[400763004,1767821330362,-145.18007204,0.00014352,2]
[400763005,1767821330386,-144.19256787,0.00014352,2]
[400763006,1767821332272,1113.457858,0.0001428,2]
[400763007,1767821333946,-195.69246571,0.00014352,2]
[400763008,1767821339143,-160.11496642,0.00014352,2]
[400763009,1767821339171,-33.21924984,0.00014352,2]
[400763010,1767821341829,-300.0,0.00014351,2]
[400763011,1767821341856,-400.0,0.00014352,2]
[400763012,1767821343527,-66.78075016,0.00014352,2]
[400763013,1767821343554,-294.07983574,0.00014352,2]
[400763014,1767821347424,-205.92016426,0.00014352,2]
[400763015,1767821347453,-94.07983574,0.00014352,2]
[400763016,1767821349768,-318.16224451,0.00014352,2]
[400763017,1767821349944,3374.99147843,0.00014,2]
[400763035,1767821352907,-87.75791975,0.00014352,2]
[400763036,1767821352933,-77.25313978,0.00014352,2]
[400763037,1767821354754,-185.79476472,0.00014352,2]
[400763038,1767821359013,-191.90720398,0.00014352,2]
[400763039,1767821362360,-45.04489152,0.00014352,2]
[400763040,1767821362386,-460.1820151,0.00014352,2]
[400763041,1767821365054,-39.8179849,0.00014352,2]
[400763042,1767821365080,-305.40900223,0.00014352,2]
[400763043,1767821368290,-194.59099777,0.00014352,2]
[400763044,1767821368316,-105.40900223,0.00014352,2]
[400763045,1767821371348,-211.34,0.00014352,2]
[400763046,1767821373716,-183.25099777,0.00014352,2]
[400763047,1767821373741,-462.43141799,0.00014352,2]
[400763049,1767821377643,-37.56858201,0.00014352,2]
[400763050,1767821377672,-223.391891,0.00014352,2]
[400763052,1767821382871,-199.9338848,0.00014352,2]
[400763053,1767821385469,-76.6742242,0.00014352,2]
[400763054,1767821385494,-184.91068569,0.00014352,2]
[400763055,1767821385654,500.0,0.0001358,2]
[400763057,1767821387414,-275.27310149,0.00014352,2]
[400763058,1767821390154,-39.81621282,0.00014352,2]
[400763059,1767821390181,-115.33984501,0.00014352,2]
[400763060,1767821394993,-186.65484852,0.00014352,2]
[400763061,1767821397370,-198.00530647,0.00014352,2]
[400763062,1767821397395,-1.47690573,0.00014352,2]
[400763063,1767821399997,-218.45570258,0.00014352,2]
[400763064,1767821401611,-300.0,0.00014351,2]
[400763065,1767821401636,-170.32348709,0.00014351,2]
[400763066,1767821402507,500.0,0.00014225,2]
[400763067,1767821402635,500.0,0.0001428,2]
[400763068,1767821402806,150.0,0.00014225,2]
[400763069,1767821402901,150.0,0.0001428,2]
[400763070,1767821403170,150.0,0.00014225,2]
[400763071,1767821403998,500.0,0.00014225,2]
[400763072,1767821404040,500.0,0.00014225,2]
[400763073,1767821404257,500.0,0.0001428,2]
[400763074,1767821405146,500.0,0.0001428,2]
[400763075,1767821405502,-200.0,0.00014335,2]
[400763076,1767821406057,500.0,0.00014225,2]
[400763077,1767821406171,500.0,0.0001428,2]
[400763078,1767821406684,150.0,0.00014225,2]
[400763079,1767821406825,150.0,0.00014225,2]
[400763080,1767821407868,-300.0,0.00014335,2]
[400763081,1767821407892,-18.16224451,0.00014335,2]
[400763082,1767821409676,-181.83775549,0.00014335,2]
[400763083,1767821409702,-52.43885372,0.00014335,2]
[400763084,1767821414303,-303.05311288,0.00014335,2]
[400763085,1767821417906,-144.5080334,0.00014335,2]
[400763086,1767821417929,-397.01918217,0.00014335,2]
[400763087,1767821419690,-102.98081783,0.00014335,2]
[400763088,1767821419713,-148.70754149,0.00014335,2]
[400763091,1767821423912,-300.0,0.00014335,2]
[400763096,1767821428842,-51.29245851,0.00014335,2]
[400763097,1767821428866,-250.0,0.00014343,2]
[400763098,1767821428892,-32.58979864,0.00014343,2]
[400763107,1767821433254,-162.41020136,0.00014343,2]
[400763108,1767821433277,-359.25059018,0.00014349,2]
[400763109,1767821433954,-25.37669051,0.00014349,2]
[400763110,1767821433963,-195.0,0.00014349,2]
[400763111,1767821433973,-1029.67651291,0.00014351,2]
[400763112,1767821433982,-300.0,0.00014351,2]
[400763113,1767821433992,-150.0,0.00014351,2]
[400763114,1767821434002,-269.0,0.00014352,2]
[400763115,1767821434011,-280.06739169,0.00014352,2]
[400763116,1767821434021,-500.0,0.00014352,2]
[400763117,1767821434030,-500.0,0.00014352,2]
[400763118,1767821434041,-500.0,0.00014352,2]
[400763119,1767821434051,-500.0,0.00014352,2]
[400763120,1767821434061,-500.0,0.00014352,2]
[400763121,1767821434071,-500.0,0.00014352,2]
[400763122,1767821434081,-500.0,0.00014352,2]
[400763123,1767821434091,-500.0,0.00014352,2]
[400763124,1767821434100,-500.0,0.00014352,2]
[400763125,1767821434110,-500.0,0.00014352,2]
[400763126,1767821434119,-500.0,0.00014352,2]
[400763127,1767821434129,-500.0,0.00014352,2]
[400763128,1767821434138,-338.34825549,0.00014352,2]
[400763129,1767821434147,-500.0,0.00014352,2]
[400763130,1767821434157,-500.0,0.00014352,2]
[400763131,1767821434166,-500.0,0.00014352,2]
[400763132,1767821434176,-500.0,0.00014352,2]
[400763133,1767821434185,-500.0,0.00014352,2]
[400763134,1767821434195,-445.23129443,0.00014352,2]
[400763135,1767821434205,-500.0,0.00014352,2]
[400763136,1767821434214,-613.66636547,0.00014352,2]
[400763137,1767821434224,-500.0,0.00014352,2]
[400763138,1767821434233,-500.0,0.00014352,2]
[400763139,1767821434243,-500.0,0.00014352,2]
[400763140,1767821434253,-500.0,0.00014352,2]
[400763141,1767821434264,-500.0,0.00014352,2]
[400763142,1767821434275,-500.0,0.00014352,2]
[400763143,1767821434285,-442.99911024,0.00014352,2]
[400763144,1767821434295,-500.0,0.00014352,2]
[400763145,1767821434304,-615.71559382,0.00014352,2]
[400763146,1767821434313,-500.0,0.00014352,2]
[400763147,1767821434323,-169.7420709,0.00014352,2]
[400763148,1767821434332,-587.91185998,0.00014352,2]
[400763149,1767821434342,-348.5989484,0.00014352,2]
[400763150,1767821434351,-300.0,0.00014353,2]
[400763151,1767821434360,-6178.66590616,0.00014353,2]
[400763152,1767821434411,-1477.1065202,0.00014353,2]
[400763153,1767821434447,-25041.36363129,0.00014353,2]
[400763154,1767821434457,-97.26000857,0.00014389,2]
[400763155,1767821434469,-328.0184482,0.00014389,2]
[400763194,1767821439215,-74.72154323,0.00014389,2]
[400763196,1767821439225,-500.0,0.00014389,2]
[400763198,1767821439234,-500.0,0.00014389,2]
[400763200,1767821439244,-500.0,0.00014389,2]
[400763202,1767821439254,-106.23845677,0.0001439,2]
[400763204,1767821439265,-393.76154323,0.0001439,2]
[400763206,1767821439274,-311.28327944,0.0001439,2]
[400763208,1767821439285,-230.0,0.00014397,2]
[400763210,1767821439294,-2104.79687486,0.00014398,2]
[400763213,1767821439305,-2418.07525,0.00014398,2]
[400763220,1767821439364,-3572.24315288,0.00014398,2]
[400763227,1767821439420,-991904.88472226,0.00014398,2]
[400763229,1767821439430,-1000.0,0.00014398,2]